[Event "EYCC Open-U18 2019"]
[Site "Bratislava"]
[Date "2019.08.02"]
[Round "1.1"]
[White "Hakobyan, Aram"]
[Black "Castillo Dalmau, Albert"]
[Result "1-0"]
[ECO "B47"]
[WhiteElo "2568"]
[BlackElo "2252"]
[Annotator "ChessBase"]
[PlyCount "51"]
[EventDate "2019.08.02"]
[EventType "swiss"]
[EventCountry "SVK"]
[SourceTitle "playchess.com"]
[Source "ChessBase"]
[SourceQuality "1"]
[TimeControl "40/5400+30:1800+30"]

1. Nf3 {[%emt 0:00:00]} c5 {[%emt 0:00:00]} 2. e4 {[%emt 0:00:00]} e6 {[%emt 0:00:00]} 3. d4 {[%emt 0:00:00]} cxd4 {[%emt 0:00:13]} 4. Nxd4 {[%emt 0:00:05]} Nc6 {[%emt 0:00:19]} 5. Nc3 {[%emt 0:00:03]} Qc7 {[%emt 0:00:36]} 6. Be2 {[%emt 0:00:29]} a6 {[%emt 0:00:47]} 7. O-O {[%emt 0:00:07]} Nf6 {[%emt 0:00:47]} 8. Be3 {[%emt 0:00:03]} Bb4 {[%emt 0:02:30]} 9. Nxc6 {[%emt 0:00:03]} bxc6 {[%emt 0:04:59]} 10. f4 {[%emt 0:01:21]} d5 {[%emt 0:18:01]} 11. e5 {[%emt 0:03:37]} Nd7 {[%emt 0:01:01]} 12. Na4 {[%emt 0:00:49]} O-O {[%emt 0:09:32]} 13. c4 {[%emt 0:00:43]} Bb7 {[%emt 0:23:57]} 14. c5 {[%emt 0:03:53]} Qb8 {[%emt 0:01:20]} 15. Bd3 {[%emt 0:02:56]} Ba5 {[%emt 0:02:53]} 16. Bd4 {[%emt 0:02:48]} f5 {[%emt 0:03:49]} 17. exf6 {[%emt 0:05:13]} Nxf6 {[%emt 0:00:18]} 18. Qe2 {[%emt 0:01:01]} Bc8 {[%emt 0:04:47]} 19. Nb6 {[%emt 0:01:28]} Ra7 {[%emt 0:00:20]} 20. b4 {[%emt 0:08:46]} Bxb6 {[%emt 0:01:00]} 21. cxb6 {[%emt 0:00:04]} Raf7 {[%emt 0:03:40]} 22. a4 {[%emt 0:00:39]} Ne8 {[%emt 0:08:03]} 23. Bc5 {[%emt 0:05:45]} Nd6 {[%emt 0:04:45]} 24. Qe5 {[%emt 0:00:45]} Rd8 {[%emt 0:00:04]} 25. a5 {[%emt 0:00:21]} Rf6 {[%emt 0:00:55]} 26. Rf3 {[%emt 0:00:56]} 1-0

[Event "EYCC Open-U18 2019"]
[Site "Bratislava"]
[Date "2019.08.02"]
[Round "1.2"]
[White "Kizatbay, Abyl"]
[Black "Van Foreest, Lucas"]
[Result "0-1"]
[ECO "B40"]
[WhiteElo "2216"]
[BlackElo "2521"]
[Annotator "ChessBase"]
[PlyCount "96"]
[EventDate "2019.08.02"]
[EventType "swiss"]
[EventCountry "SVK"]
[SourceTitle "playchess.com"]
[Source "ChessBase"]
[SourceQuality "1"]
[TimeControl "40/5400+30:1800+30"]

1. e4 {[%emt 0:00:00]} c5 {[%emt 0:00:01]} 2. Nf3 {[%emt 0:00:00]} e6 {[%emt 0:00:01]} 3. g3 {[%emt 0:01:43]} Nc6 {[%emt 0:02:28]} 4. Bg2 {[%emt 0:00:42]} Nf6 {[%emt 0:00:15]} 5. Qe2 {[%emt 0:01:12]} e5 {[%emt 0:00:11]} 6. O-O {[%emt 0:01:01]} Be7 {[%emt 0:01:46]} 7. c3 {[%emt 0:01:24]} d6 {[%emt 0:01:09]} 8. d3 {[%emt 0:07:43]} O-O {[%emt 0:00:20]} 9. Na3 {[%emt 0:01:46]} Re8 {[%emt 0:01:59]} 10. Bg5 {[%emt 0:03:34]} Be6 {[%emt 0:04:34]} 11. Nc4 {[%emt 0:06:48]} h6 {[%emt 0:01:12]} 12. Bxf6 {[%emt 0:01:01]} Bxf6 {[%emt 0:00:10]} 13. Ne3 {[%emt 0:03:10]} b5 {[%emt 0:14:43]} 14. Nd2 {[%emt 0:05:30]} b4 {[%emt 0:00:06]} 15. Nd5 {[%emt 0:08:26]} Bg5 {[%emt 0:03:54]} 16. Nc4 {[%emt 0:03:10]} bxc3 {[%emt 0:03:34]} 17. bxc3 {[%emt 0:02:56]} Bxd5 {[%emt 0:01:04]} 18. exd5 {[%emt 0:00:21]} Na5 {[%emt 0:00:05]} 19. h4 {[%emt 0:06:44]} Bf6 {[%emt 0:00:06]} 20. Be4 {[%emt 0:09:04]} Nxc4 {[%emt 0:00:14]} 21. dxc4 {[%emt 0:00:01]} Qa5 {[%emt 0:01:39]} 22. Qf3 {[%emt 0:05:47]} Rab8 {[%emt 0:00:09]} 23. Rfb1 {[%emt 0:03:06]} Qa4 {[%emt 0:00:58]} 24. Qf5 {[%emt 0:02:03]} Kf8 {[%emt 0:00:06]} 25. Rxb8 {[%emt 0:05:07]} Rxb8 {[%emt 0:00:01]} 26. Rb1 {[%emt 0:00:12]} Rxb1+ {[%emt 0:01:41]} 27. Bxb1 {[%emt 0:00:03]} Qe8 {[%emt 0:02:02]} 28. Kg2 {[%emt 0:06:41]} Ke7 {[%emt 0:00:07]} 29. Qc2 {[%emt 0:00:52]} g6 {[%emt 0:01:07]} 30. Qb3 {[%emt 0:02:38]} Kf8 {[%emt 0:00:04]} 31. Qb5 {[%emt 0:03:33]} Qe7 {[%emt 0:00:10]} 32. Qb8+ {[%emt 0:00:29]} Kg7 {[%emt 0:00:01]} 33. Be4 {[%emt 0:00:20]} h5 {[%emt 0:00:05]} 34. a4 {[%emt 0:02:38]} Kh6 {[%emt 0:03:36]} 35. a5 {[%emt 0:01:40]} Bg7 {[%emt 0:00:01]} 36. a6 {[%emt 0:02:10]} f5 {[%emt 0:00:01]} 37. Qb7 {[%emt 0:00:31]} Qf6 {[%emt 0:00:01]} 38. Bb1 {[%emt 0:01:24]} e4 {[%emt 0:00:01]} 39. Qxa7 {[%emt 0:03:11]} Qxc3 {[%emt 0:00:01]} 40. Qe7 {[%emt 0:00:00]} Qf3+ {[%emt 0:00:00]} 41. Kg1 {[%emt 0:05:52]} Qd1+ {[%emt 0:05:05]} 42. Kg2 {[%emt 0:02:14]} Qxb1 {[%emt 0:02:07]} 43. a7 {[%emt 0:05:48]} Qa2 {[%emt 0:02:49]} 44. Qb7 {[%emt 0:00:53]} Bd4 {[%emt 0:00:48]} 45. a8=Q {[%emt 0:01:49]} Qxf2+ {[%emt 0:00:10]} 46. Kh3 {[%emt 0:00:04]} Qf1+ {[%emt 0:00:10]} 47. Kh2 {[%emt 0:00:03]} Qg1+ {[%emt 0:00:13]} 48. Kh3 {[%emt 0:00:02]} Qh1# 0-1

[Event "EYCC Open-U18 2019"]
[Site "Bratislava"]
[Date "2019.08.02"]
[Round "1.3"]
[White "Nguyen, Thai Dai Van"]
[Black "Godzwon, Iwo"]
[Result "1-0"]
[ECO "E35"]
[WhiteElo "2535"]
[BlackElo "2285"]
[Annotator "ChessBase"]
[PlyCount "115"]
[EventDate "2019.08.02"]
[EventType "swiss"]
[EventCountry "SVK"]
[SourceTitle "playchess.com"]
[Source "ChessBase"]
[SourceQuality "1"]
[TimeControl "40/5400+30:1800+30"]

1. d4 {[%emt 0:00:00]} Nf6 {[%emt 0:00:00]} 2. c4 {[%emt 0:00:00]} e6 {[%emt 0:00:00]} 3. Nc3 {[%emt 0:00:00]} Bb4 {[%emt 0:00:00]} 4. Qc2 {[%emt 0:01:04]} d5 {[%emt 0:00:00]} 5. cxd5 {[%emt 0:02:31]} exd5 {[%emt 0:00:05]} 6. Bg5 {[%emt 0:02:13]} h6 {[%emt 0:00:34]} 7. Bh4 {[%emt 0:01:40]} c5 {[%emt 0:03:34]} 8. dxc5 {[%emt 0:23:02]} Be6 {[%emt 0:07:12]} 9. e3 {[%emt 0:06:32]} Nbd7 {[%emt 0:15:03]} 10. a3 {[%emt 0:08:15]} Bxc5 {[%emt 0:03:05]} 11. Nf3 {[%emt 0:00:07]} Rc8 {[%emt 0:09:06]} 12. Bd3 {[%emt 0:03:44]} O-O {[%emt 0:02:17]} 13. O-O {[%emt 0:00:05]} Be7 {[%emt 0:01:05]} 14. Rfd1 {[%emt 0:05:57]} Nc5 {[%emt 0:02:17]} 15. Rac1 {[%emt 0:02:29]} Qb6 {[%emt 0:13:15]} 16. Nd4 {[%emt 0:09:17]} Nxd3 {[%emt 0:07:33]} 17. Rxd3 {[%emt 0:00:05]} Rc7 {[%emt 0:03:23]} 18. Qb3 {[%emt 0:09:49]} Qxb3 {[%emt 0:05:08]} 19. Nxb3 {[%emt 0:00:02]} Rfc8 {[%emt 0:02:28]} 20. Bg3 {[%emt 0:00:40]} Rd7 {[%emt 0:00:31]} 21. f3 {[%emt 0:03:31]} Bd8 {[%emt 0:03:36]} 22. Be5 {[%emt 0:02:12]} Bb6 {[%emt 0:00:24]} 23. Bd4 {[%emt 0:01:26]} Bxd4 {[%emt 0:01:00]} 24. Rxd4 {[%emt 0:02:11]} Kf8 {[%emt 0:01:15]} 25. Kf2 {[%emt 0:00:58]} Ke7 {[%emt 0:03:55]} 26. Rcd1 {[%emt 0:02:00]} b6 {[%emt 0:02:06]} 27. g4 {[%emt 0:00:30]} Rc4 {[%emt 0:03:06]} 28. h4 {[%emt 0:06:30]} Rxd4 {[%emt 0:00:24]} 29. Nxd4 {[%emt 0:00:05]} a6 {[%emt 0:02:42]} 30. g5 {[%emt 0:00:47]} hxg5 {[%emt 0:00:03]} 31. hxg5 {[%emt 0:00:03]} Ne8 {[%emt 0:00:02]} 32. Nc6+ {[%emt 0:02:24]} Kd6 {[%emt 0:00:04]} 33. Nb4 {[%emt 0:00:10]} Nc7 {[%emt 0:00:16]} 34. e4 {[%emt 0:00:22]} Ke5 {[%emt 0:05:45]} 35. Nd3+ {[%emt 0:00:19]} Kd6 {[%emt 0:00:04]} 36. Nb4 {[%emt 0:01:28]} Ke5 {[%emt 0:00:06]} 37. Nd3+ {[%emt 0:02:56]} Kd6 {[%emt 0:00:05]} 38. f4 {[%emt 0:00:05]} f6 {[%emt 0:01:24]} 39. f5 {[%emt 0:02:21]} Bg8 {[%emt 0:00:52]} 40. Nf4 {[%emt 0:00:00]} fxg5 {[%emt 0:00:00]} 41. Ng6 {[%emt 0:04:12]} Kc5 {[%emt 0:05:21]} 42. b4+ {[%emt 0:05:03]} Kd6 {[%emt 0:02:15]} 43. e5+ {[%emt 0:01:01]} Kc6 {[%emt 0:00:02]} 44. Ne2 {[%emt 0:11:57]} Rd8 {[%emt 0:04:23]} 45. Nd4+ {[%emt 0:00:18]} Kb7 {[%emt 0:00:02]} 46. Rg1 {[%emt 0:02:20]} Bf7 {[%emt 0:00:53]} 47. Rxg5 {[%emt 0:00:10]} Re8 {[%emt 0:00:28]} 48. Nf4 {[%emt 0:02:25]} Rxe5 {[%emt 0:01:00]} 49. Rxg7 {[%emt 0:00:05]} Re7 {[%emt 0:00:04]} 50. Rh7 {[%emt 0:03:32]} Rd7 {[%emt 0:03:25]} 51. Nd3 {[%emt 0:01:34]} Be6 {[%emt 0:02:43]} 52. Rxd7 {[%emt 0:00:06]} Bxd7 {[%emt 0:00:03]} 53. f6 {[%emt 0:02:11]} Be6 {[%emt 0:02:25]} 54. Ne5 {[%emt 0:00:48]} b5 {[%emt 0:00:12]} 55. Ke3 {[%emt 0:00:45]} a5 {[%emt 0:02:09]} 56. Nxe6 {[%emt 0:00:47]} Nxe6 {[%emt 0:00:04]} 57. f7 {[%emt 0:00:04]} axb4 {[%emt 0:00:20]} 58. axb4 {[%emt 0:00:05]} 1-0

[Event "EYCC Open-U18 2019"]
[Site "Bratislava"]
[Date "2019.08.02"]
[Round "1.4"]
[White "Zeman, Matyas"]
[Black "Bjerre, Jonas Buhl"]
[Result "0-1"]
[ECO "B50"]
[WhiteElo "2275"]
[BlackElo "2503"]
[Annotator "ChessBase"]
[PlyCount "188"]
[EventDate "2019.08.02"]
[EventType "swiss"]
[EventCountry "SVK"]
[SourceTitle "playchess.com"]
[Source "ChessBase"]
[SourceQuality "1"]
[TimeControl "40/5400+30:1800+30"]

1. e4 {[%emt 0:00:00]} c5 {[%emt 0:00:00]} 2. Nf3 {[%emt 0:00:00]} d6 {[%emt 0:00:00]} 3. g3 {[%emt 0:00:14]} Nf6 {[%emt 0:02:57]} 4. d3 {[%emt 0:00:10]} g6 {[%emt 0:01:39]} 5. Bg2 {[%emt 0:00:16]} Bg7 {[%emt 0:00:54]} 6. O-O {[%emt 0:00:21]} Nc6 {[%emt 0:01:08]} 7. Re1 {[%emt 0:01:22]} O-O {[%emt 0:01:30]} 8. h3 {[%emt 0:00:56]} e5 {[%emt 0:03:16]} 9. a4 {[%emt 0:01:22]} h6 {[%emt 0:03:25]} 10. Na3 {[%emt 0:01:28]} Re8 {[%emt 0:01:50]} 11. Nc4 {[%emt 0:05:21]} Be6 {[%emt 0:04:59]} 12. Ne3 {[%emt 0:27:35]} Qd7 {[%emt 0:05:14]} 13. Kh2 {[%emt 0:00:11]} d5 {[%emt 0:04:58]} 14. Nd2 {[%emt 0:02:40]} Rad8 {[%emt 0:05:37]} 15. c4 {[%emt 0:25:15]} d4 {[%emt 0:17:30]} 16. Nd5 {[%emt 0:00:54]} Nh7 {[%emt 0:02:04]} 17. Nb3 {[%emt 0:07:32]} Qd6 {[%emt 0:04:41]} 18. Bd2 {[%emt 0:03:14]} Rf8 {[%emt 0:02:50]} 19. Na5 {[%emt 0:01:13]} Rd7 {[%emt 0:02:26]} 20. Qb3 {[%emt 0:01:05]} Nxa5 {[%emt 0:03:00]} 21. Bxa5 {[%emt 0:00:08]} f5 {[%emt 0:01:24]} 22. exf5 {[%emt 0:01:50]} Rxf5 {[%emt 0:04:12]} 23. Re2 {[%emt 0:03:06]} Ng5 {[%emt 0:00:53]} 24. Bc7 {[%emt 0:06:36]} Rxc7 {[%emt 0:04:30]} 25. Nxc7 {[%emt 0:00:03]} Qxc7 {[%emt 0:00:06]} 26. Qxb7 {[%emt 0:00:06]} Qxb7 {[%emt 0:01:21]} 27. Bxb7 {[%emt 0:00:02]} Rf7 {[%emt 0:00:38]} 28. Bc6 {[%emt 0:00:16]} e4 {[%emt 0:06:03]} 29. Bxe4 {[%emt 0:00:27]} Nxe4 {[%emt 0:00:11]} 30. Rxe4 {[%emt 0:00:05]} Bf5 {[%emt 0:01:34]} 31. Re8+ {[%emt 0:00:07]} Bf8 {[%emt 0:01:48]} 32. Rd1 {[%emt 0:00:19]} Bd7 {[%emt 0:00:24]} 33. Re2 {[%emt 0:00:05]} g5 {[%emt 0:02:11]} 34. b3 {[%emt 0:02:24]} Bd6 {[%emt 0:00:47]} 35. Rde1 {[%emt 0:02:01]} Rf3 {[%emt 0:02:18]} 36. Rd2 {[%emt 0:00:52]} h5 {[%emt 0:01:10]} 37. Re4 {[%emt 0:00:27]} Kf7 {[%emt 0:03:58]} 38. b4 {[%emt 0:01:09]} Bc6 {[%emt 0:01:54]} 39. bxc5 {[%emt 0:00:18]} Bxe4 {[%emt 0:01:58]} 40. cxd6 {[%emt 0:00:00]} Bxd3 {[%emt 0:00:00]} 41. d7 {[%emt 0:00:18]} Ke7 {[%emt 0:01:56]} 42. g4 {[%emt 0:00:19]} Kd8 {[%emt 0:06:45]} 43. gxh5 {[%emt 0:00:45]} Bf5 {[%emt 0:05:07]} 44. Rxd4 {[%emt 0:01:36]} Rxh3+ {[%emt 0:00:07]} 45. Kg2 {[%emt 0:00:24]} Rxh5 {[%emt 0:00:14]} 46. f3 {[%emt 0:04:31]} Bxd7 {[%emt 0:01:41]} 47. Rd6 {[%emt 0:01:24]} Kc7 {[%emt 0:01:09]} 48. Rg6 {[%emt 0:00:06]} g4 {[%emt 0:06:10]} 49. fxg4 {[%emt 0:01:01]} Ra5 {[%emt 0:00:04]} 50. g5 {[%emt 0:02:09]} Rxa4 {[%emt 0:00:04]} 51. Rf6 {[%emt 0:00:42]} Rxc4 {[%emt 0:01:10]} 52. g6 {[%emt 0:00:04]} a5 {[%emt 0:02:01]} 53. Kf3 {[%emt 0:00:28]} Bc6+ {[%emt 0:03:06]} 54. Ke3 {[%emt 0:01:38]} Rg4 {[%emt 0:00:22]} 55. Kd2 {[%emt 0:01:02]} Kb6 {[%emt 0:00:17]} 56. Kc3 {[%emt 0:00:12]} Rg2 {[%emt 0:02:05]} 57. Re6 {[%emt 0:01:29]} Kc5 {[%emt 0:01:00]} 58. Re3 {[%emt 0:01:14]} Rxg6 {[%emt 0:01:02]} 59. Kb3 {[%emt 0:00:04]} Rg2 {[%emt 0:00:45]} 60. Rc3+ {[%emt 0:01:34]} Kd6 {[%emt 0:03:26]} 61. Rd3+ {[%emt 0:01:13]} Bd5+ {[%emt 0:00:14]} 62. Ka4 {[%emt 0:00:20]} Kc5 {[%emt 0:01:24]} 63. Rh3 {[%emt 0:00:44]} Rg4+ {[%emt 0:01:26]} 64. Ka3 {[%emt 0:00:07]} Rg2 {[%emt 0:00:06]} 65. Ka4 {[%emt 0:00:05]} Rb2 {[%emt 0:00:42]} 66. Rg3 {[%emt 0:00:52]} Rb4+ {[%emt 0:01:49]} 67. Kxa5 {[%emt 0:03:12]} Rb8 {[%emt 0:00:59]} 68. Rg6 {[%emt 0:00:05]} Rh8 {[%emt 0:00:11]} 69. Rb6 {[%emt 0:01:05]} Ra8+ {[%emt 0:00:48]} 70. Ra6 {[%emt 0:00:01]} Rb8 {[%emt 0:00:03]} 71. Rg6 {[%emt 0:03:54]} Rb5+ {[%emt 0:00:54]} 72. Ka6 {[%emt 0:00:30]} Rb8 {[%emt 0:00:23]} 73. Ka5 {[%emt 0:00:04]} Rb5+ {[%emt 0:00:07]} 74. Ka6 {[%emt 0:00:11]} Rb2 {[%emt 0:00:40]} 75. Ka7 {[%emt 0:00:07]} Rb7+ {[%emt 0:00:03]} 76. Ka6 {[%emt 0:00:08]} Rh7 {[%emt 0:00:12]} 77. Ka5 {[%emt 0:01:41]} Rh2 {[%emt 0:00:33]} 78. Rg4 {[%emt 0:00:08]} Rb2 {[%emt 0:00:48]} 79. Rh4 {[%emt 0:01:13]} Bf7 {[%emt 0:01:22]} 80. Rf4 {[%emt 0:03:33]} Bc4 {[%emt 0:00:05]} 81. Rf5+ {[%emt 0:00:05]} Bd5 {[%emt 0:00:05]} 82. Rf4 {[%emt 0:00:03]} Rb8 {[%emt 0:01:11]} 83. Rf6 {[%emt 0:00:04]} Rb5+ {[%emt 0:00:02]} 84. Ka6 {[%emt 0:00:14]} Rb1 {[%emt 0:01:12]} 85. Ka7 {[%emt 0:00:29]} Rb7+ {[%emt 0:00:45]} 86. Ka6 {[%emt 0:00:04]} Rb3 {[%emt 0:00:07]} 87. Ka7 {[%emt 0:00:04]} Rh3 {[%emt 0:00:20]} 88. Kb8 {[%emt 0:01:21]} Bc6 {[%emt 0:00:08]} 89. Kc7 {[%emt 0:00:17]} Rh7+ {[%emt 0:00:02]} 90. Kd8 {[%emt 0:00:32]} Kb6 {[%emt 0:00:17]} 91. Rf2 {[%emt 0:01:38]} Rd7+ {[%emt 0:00:12]} 92. Kc8 {[%emt 0:00:01]} Rd1 {[%emt 0:00:26]} 93. Rb2+ {[%emt 0:03:54]} Bb5 {[%emt 0:00:03]} 94. Rc2 {[%emt 0:00:20]} Ba6+ {[%emt 0:00:08]} 0-1

[Event "EYCC Open-U18 2019"]
[Site "Bratislava"]
[Date "2019.08.02"]
[Round "1.5"]
[White "Engel, Luis"]
[Black "Hurdzan, Tomas"]
[Result "1-0"]
[ECO "B66"]
[WhiteElo "2509"]
[BlackElo "2231"]
[Annotator "ChessBase"]
[PlyCount "99"]
[EventDate "2019.08.02"]
[EventType "swiss"]
[EventCountry "SVK"]
[SourceTitle "playchess.com"]
[Source "ChessBase"]
[SourceQuality "1"]
[TimeControl "40/5400+30:1800+30"]

1. e4 {[%emt 0:00:00]} c5 {[%emt 0:00:00]} 2. Nf3 {[%emt 0:00:00]} d6 {[%emt 0:00:00]} 3. d4 {[%emt 0:00:00]} cxd4 {[%emt 0:00:00]} 4. Nxd4 {[%emt 0:00:00]} Nf6 {[%emt 0:00:06]} 5. Nc3 {[%emt 0:00:00]} Nc6 {[%emt 0:00:04]} 6. Bg5 {[%emt 0:00:00]} e6 {[%emt 0:00:28]} 7. Qd2 {[%emt 0:00:05]} a6 {[%emt 0:00:23]} 8. O-O-O {[%emt 0:00:09]} h6 {[%emt 0:00:38]} 9. Nxc6 {[%emt 0:00:47]} bxc6 {[%emt 0:00:07]} 10. Bf4 {[%emt 0:00:05]} d5 {[%emt 0:00:08]} 11. Qe3 {[%emt 0:00:05]} Bb4 {[%emt 0:01:08]} 12. Be2 {[%emt 0:00:17]} O-O {[%emt 0:01:22]} 13. e5 {[%emt 0:00:50]} Nh7 {[%emt 0:00:51]} 14. h4 {[%emt 0:07:58]} Qa5 {[%emt 0:03:10]} 15. Rh3 {[%emt 0:06:46]} Bc5 {[%emt 0:03:52]} 16. Qd2 {[%emt 0:07:41]} Ra7 {[%emt 0:38:41]} 17. Bd3 {[%emt 0:05:35]} f5 {[%emt 0:01:58]} 18. Kb1 {[%emt 0:16:11]} Rb7 {[%emt 0:05:19]} 19. Ka1 {[%emt 0:08:36]} Bd7 {[%emt 0:11:30]} 20. Rb1 {[%emt 0:10:50]} Bb4 {[%emt 0:08:59]} 21. Be2 {[%emt 0:03:03]} c5 {[%emt 0:01:01]} 22. Qe3 {[%emt 0:06:28]} Bc6 {[%emt 0:03:05]} 23. Nd1 {[%emt 0:02:50]} d4 {[%emt 0:04:35]} 24. Qb3 {[%emt 0:00:19]} Bd5 {[%emt 0:03:01]} 25. Bc4 {[%emt 0:00:15]} Bd2 {[%emt 0:02:41]} 26. Bxd2 {[%emt 0:02:07]} Qxd2 {[%emt 0:00:04]} 27. Qd3 {[%emt 0:02:23]} Qf4 {[%emt 0:01:51]} 28. Bxd5 {[%emt 0:01:04]} exd5 {[%emt 0:00:04]} 29. Qxa6 {[%emt 0:00:58]} Re7 {[%emt 0:01:23]} 30. Qd6 {[%emt 0:01:52]} Qxe5 {[%emt 0:00:05]} 31. Qxc5 {[%emt 0:00:10]} Rc7 {[%emt 0:00:18]} 32. Qb6 {[%emt 0:01:24]} Rc4 {[%emt 0:03:29]} 33. c3 {[%emt 0:01:53]} Nf6 {[%emt 0:02:12]} 34. cxd4 {[%emt 0:00:22]} Rxd4 {[%emt 0:00:13]} 35. Re3 {[%emt 0:03:19]} Re4 {[%emt 0:01:19]} 36. Nc3 {[%emt 0:01:53]} Rb8 {[%emt 0:00:09]} 37. Qc5 {[%emt 0:01:44]} Rxe3 {[%emt 0:00:22]} 38. Qxe3 {[%emt 0:00:57]} Qd6 {[%emt 0:00:15]} 39. Qd3 {[%emt 0:01:15]} d4 {[%emt 0:02:05]} 40. Ne2 {[%emt 0:00:00]} Nd5 {[%emt 0:00:00]} 41. Rc1 {[%emt 0:05:14]} Re8 {[%emt 0:11:45]} 42. Nxd4 {[%emt 0:01:31]} Nb4 {[%emt 0:01:42]} 43. Qc4+ {[%emt 0:01:17]} Kh8 {[%emt 0:00:06]} 44. a3 {[%emt 0:04:02]} Nd5 {[%emt 0:00:58]} 45. Nxf5 {[%emt 0:00:43]} Qe5 {[%emt 0:00:25]} 46. Nd4 {[%emt 0:01:06]} Rb8 {[%emt 0:02:42]} 47. g3 {[%emt 0:01:27]} Rf8 {[%emt 0:01:43]} 48. Nc6 {[%emt 0:01:23]} Qf5 {[%emt 0:00:53]} 49. g4 {[%emt 0:02:00]} Qf3 {[%emt 0:00:29]} 50. Ne5 {[%emt 0:00:17]} 1-0

[Event "EYCC Open-U18 2019"]
[Site "Bratislava"]
[Date "2019.08.02"]
[Round "1.6"]
[White "Kotau, Arseni"]
[Black "Schoppen, Casper"]
[Result "1/2-1/2"]
[ECO "E06"]
[WhiteElo "2227"]
[BlackElo "2493"]
[Annotator "ChessBase"]
[PlyCount "99"]
[EventDate "2019.08.02"]
[EventType "swiss"]
[EventCountry "SVK"]
[SourceTitle "playchess.com"]
[Source "ChessBase"]
[SourceQuality "1"]
[TimeControl "40/5400+30:1800+30"]

1. d4 {[%emt 0:00:00]} Nf6 {[%emt 0:00:00]} 2. c4 {[%emt 0:00:00]} e6 {[%emt 0:00:00]} 3. g3 {[%emt 0:00:00]} d5 {[%emt 0:00:06]} 4. Bg2 {[%emt 0:00:43]} Be7 {[%emt 0:00:17]} 5. Nf3 {[%emt 0:00:20]} O-O {[%emt 0:00:07]} 6. O-O {[%emt 0:00:10]} dxc4 {[%emt 0:00:06]} 7. Qc2 {[%emt 0:00:34]} a6 {[%emt 0:00:14]} 8. a4 {[%emt 0:00:14]} Bd7 {[%emt 0:00:06]} 9. Qxc4 {[%emt 0:00:41]} Bc6 {[%emt 0:00:06]} 10. Nc3 {[%emt 0:00:49]} b5 {[%emt 0:00:57]} 11. Qd3 {[%emt 0:02:24]} b4 {[%emt 0:00:15]} 12. Nb1 {[%emt 0:00:46]} Be4 {[%emt 0:00:10]} 13. Qd1 {[%emt 0:02:49]} c5 {[%emt 0:00:57]} 14. Nbd2 {[%emt 0:04:20]} Bd5 {[%emt 0:04:27]} 15. dxc5 {[%emt 0:00:45]} Nbd7 {[%emt 0:00:26]} 16. c6 {[%emt 0:11:31]} Bxc6 {[%emt 0:00:28]} 17. Nc4 {[%emt 0:00:57]} Bd5 {[%emt 0:03:06]} 18. Nfe5 {[%emt 0:12:23]} Nxe5 {[%emt 0:04:34]} 19. Nxe5 {[%emt 0:03:37]} Bxg2 {[%emt 0:01:24]} 20. Kxg2 {[%emt 0:00:21]} Qc7 {[%emt 0:00:14]} 21. Nf3 {[%emt 0:10:01]} Rac8 {[%emt 0:02:18]} 22. Bf4 {[%emt 0:03:47]} Qc2 {[%emt 0:01:50]} 23. Be5 {[%emt 0:02:23]} Rfd8 {[%emt 0:04:32]} 24. Qxc2 {[%emt 0:10:37]} Rxc2 {[%emt 0:00:45]} 25. Nd4 {[%emt 0:01:32]} Rc5 {[%emt 0:01:20]} 26. Rac1 {[%emt 0:03:56]} Rxe5 {[%emt 0:09:09]} 27. Nc6 {[%emt 0:00:27]} Rxe2 {[%emt 0:00:42]} 28. Nxd8 {[%emt 0:01:50]} Bxd8 {[%emt 0:00:13]} 29. Rfd1 {[%emt 0:01:11]} Be7 {[%emt 0:01:55]} 30. Rc8+ {[%emt 0:02:13]} Bf8 {[%emt 0:00:05]} 31. Rdd8 {[%emt 0:00:08]} g5 {[%emt 0:00:09]} 32. Rxf8+ {[%emt 0:06:44]} Kg7 {[%emt 0:00:19]} 33. b3 {[%emt 0:12:57]} Rb2 {[%emt 0:01:02]} 34. h4 {[%emt 0:01:42]} g4 {[%emt 0:01:37]} 35. h5 {[%emt 0:01:00]} h6 {[%emt 0:01:52]} 36. Rfd8 {[%emt 0:00:36]} Rxb3 {[%emt 0:01:25]} 37. Rc4 {[%emt 0:01:47]} Rb2 {[%emt 0:15:07]} 38. Ra8 {[%emt 0:00:58]} e5 {[%emt 0:03:14]} 39. Rxa6 {[%emt 0:01:03]} e4 {[%emt 0:00:13]} 40. Ra5 {[%emt 0:00:00]} e3 {[%emt 0:00:00]} 41. Rf4 {[%emt 0:13:55]} e2 {[%emt 0:03:31]} 42. Re5 {[%emt 0:00:09]} b3 {[%emt 0:00:18]} 43. Rb4 {[%emt 0:10:13]} Nd5 {[%emt 0:05:46]} 44. Rbe4 {[%emt 0:00:32]} Nc3 {[%emt 0:01:30]} 45. Rxg4+ {[%emt 0:00:39]} Kf6 {[%emt 0:09:33]} 46. Re8 {[%emt 0:01:04]} Nd5 {[%emt 0:02:05]} 47. Rd4 {[%emt 0:04:00]} Nc7 {[%emt 0:01:15]} 48. Rf4+ {[%emt 0:03:30]} Kg7 {[%emt 0:00:05]} 49. Rg4+ {[%emt 0:00:48]} Kf6 {[%emt 0:00:15]} 50. Rf4+ {[%emt 0:01:04] Ke5} 1/2-1/2

[Event "EYCC Open-U18 2019"]
[Site "Bratislava"]
[Date "2019.08.02"]
[Round "1.7"]
[White "Gumularz, Szymon"]
[Black "Akdogan, Alperen"]
[Result "1-0"]
[ECO "B12"]
[WhiteElo "2502"]
[BlackElo "2193"]
[Annotator "ChessBase"]
[PlyCount "79"]
[EventDate "2019.08.02"]
[EventType "swiss"]
[EventCountry "SVK"]
[SourceTitle "playchess.com"]
[Source "ChessBase"]
[SourceQuality "1"]
[TimeControl "40/5400+30:1800+30"]

1. e4 {[%emt 0:00:00]} c6 {[%emt 0:00:00]} 2. d4 {[%emt 0:00:00]} d5 {[%emt 0:00:00]} 3. e5 {[%emt 0:00:00]} c5 {[%emt 0:01:10]} 4. Nf3 {[%emt 0:00:06]} e6 {[%emt 0:05:25]} 5. c3 {[%emt 0:01:06]} Nc6 {[%emt 0:00:27]} 6. a3 {[%emt 0:03:39]} Bd7 {[%emt 0:02:34]} 7. b4 {[%emt 0:03:45]} c4 {[%emt 0:08:09]} 8. a4 {[%emt 0:03:46]} Qc7 {[%emt 0:04:37]} 9. Na3 {[%emt 0:08:38]} O-O-O {[%emt 0:08:34]} 10. Bf4 {[%emt 0:01:11]} f5 {[%emt 0:22:26]} 11. Qd2 {[%emt 0:09:07]} a6 {[%emt 0:05:47]} 12. h4 {[%emt 0:02:34]} Nh6 {[%emt 0:09:40]} 13. Be2 {[%emt 0:01:09]} Nf7 {[%emt 0:04:58]} 14. Nc2 {[%emt 0:23:58]} Be7 {[%emt 0:01:25]} 15. Ne3 {[%emt 0:01:06]} g6 {[%emt 0:02:23]} 16. g4 {[%emt 0:07:33]} h6 {[%emt 0:09:07]} 17. gxf5 {[%emt 0:06:27]} gxf5 {[%emt 0:00:08]} 18. Bg3 {[%emt 0:02:48]} Rdg8 {[%emt 0:04:05]} 19. Ng2 {[%emt 0:00:51]} Rh7 {[%emt 0:03:27]} 20. Nf4 {[%emt 0:01:27]} Nh8 {[%emt 0:00:25]} 21. Ng1 {[%emt 0:04:14]} Nd8 {[%emt 0:00:46]} 22. Bf3 {[%emt 0:00:53]} Ng6 {[%emt 0:01:59]} 23. Nge2 {[%emt 0:00:28]} Nxf4 {[%emt 0:01:25]} 24. Nxf4 {[%emt 0:00:19]} Nf7 {[%emt 0:01:23]} 25. Qe2 {[%emt 0:05:06]} Qd8 {[%emt 0:01:07]} 26. b5 {[%emt 0:01:10]} Qa5 {[%emt 0:00:30]} 27. Kd2 {[%emt 0:00:40]} Nd8 {[%emt 0:00:47]} 28. Rhb1 {[%emt 0:02:58]} Rhg7 {[%emt 0:00:30]} 29. Qe1 {[%emt 0:04:26]} Be8 {[%emt 0:00:42]} 30. Rb2 {[%emt 0:00:41]} Bd7 {[%emt 0:00:06]} 31. bxa6 {[%emt 0:00:39]} Qxa6 {[%emt 0:00:05]} 32. a5 {[%emt 0:00:20]} Nc6 {[%emt 0:00:42]} 33. Bxd5 {[%emt 0:03:23]} exd5 34. e6 {[%emt 0:00:10]} Be8 {[%emt 0:01:06]} 35. Nxd5 {[%emt 0:00:09]} Rxg3 {[%emt 0:00:47]} 36. fxg3 {[%emt 0:00:24]} Bd6 {[%emt 0:00:17]} 37. Rb6 {[%emt 0:00:14]} Qa7 {[%emt 0:00:44]} 38. a6 {[%emt 0:00:07]} bxa6 {[%emt 0:00:17]} 39. Raxa6 {[%emt 0:00:12]} Bxg3 {[%emt 0:00:53]} 40. Qb1 {[%emt 0:00:00]} 1-0